fUSD/lending_fUSD_20260126
["ID","MTS","AMOUNT","RATE_DAILY","PERIOD"]
[403662069,1769452734327,1906.12,0.00016267,2]
[403662070,1769452734375,-4172.5416,0.00016357,2]
[403662071,1769452734390,-10000.01,0.00016357,2]
[403662072,1769452734403,-10000.01,0.00016357,2]
[403662073,1769452734425,-10000.01,0.00016357,2]
[403662074,1769452734742,151.0,0.00016224,2]
[403662075,1769452740242,-2619.21310459,0.00016357,2]
[403662076,1769452740270,-300.0,0.00016366,2]
[403662077,1769452740298,-550.0,0.00016366,2]
[403662078,1769452740325,-300.0,0.00016366,2]
[403662079,1769452740354,-500.0,0.00016366,2]
[403662080,1769452740381,-500.0,0.00016366,2]
[403662081,1769452740521,-310.58379082,0.00016366,2]
[403662082,1769452744106,501.32971868,0.00011773,2]
[403662083,1769452744137,500.0,0.00011773,2]
[403662084,1769452744177,1000.0,0.00012321,2]
[403662085,1769452745038,500.0,0.00011773,2]
[403662086,1769452745080,544.47711737,0.00012321,2]
[403662087,1769452746144,-189.41620918,0.00016366,2]
[403662088,1769452746171,-550.0,0.00016366,2]
[403662089,1769452746202,-823.77908852,0.00016367,2]
[403662090,1769452746231,-1000.0,0.00016367,2]
[403662091,1769452746259,-201.93286099,0.00016367,2]
[403662092,1769452746285,-201.93286099,0.00016367,2]
[403662093,1769452746313,-1000.0,0.00016367,2]
[403662094,1769452746344,-1000.0,0.00016367,2]
[403662095,1769452746478,-65.88796064,0.00016367,2]
[403662096,1769452747044,501.22866478,0.00011773,2]
[403662097,1769452749283,-934.11203936,0.00016367,2]
[403662098,1769452749312,-1000.0,0.00016367,2]
[403662099,1769452749345,-500.0,0.00016367,2]
[403662100,1769452749379,-250.0,0.00016367,2]
[403662101,1769452749416,-500.0,0.00016367,2]
[403662102,1769452749456,-250.0,0.00016367,2]
[403662103,1769452749493,-250.0,0.00016367,2]
[403662104,1769452749526,-500.0,0.00016367,2]
[403662105,1769452749555,-250.0,0.00016367,2]
[403662106,1769452749584,-250.0,0.00016367,2]
[403662107,1769452749614,-131.78592128,0.00016367,2]
[403662108,1769452749806,-368.21407872,0.00016367,2]
[403662112,1769452804881,500.0,0.00011773,2]
[403662113,1769452804919,506.04764585,0.00012321,2]
[403662114,1769452805160,500.0,0.00011773,2]
[403662115,1769452805203,607.15821099,0.00012321,2]
[403662116,1769452806563,500.0,0.00011773,2]
[403662117,1769452806621,1000.0,0.00012321,2]
[403662118,1769452825646,-573.22499205,0.00015663,2]
[403662119,1769452827636,-291.06796235,0.00015663,2]
[403662120,1769452831762,-319.213865,0.00015663,2]
[403662121,1769452833880,-230.77829554,0.00015663,2]
[403662122,1769452835485,-280.40560413,0.00015663,2]
[403662123,1769452837467,-445.04373616,0.00015663,2]
[403662124,1769452842506,-233.21668653,0.00015663,2]
[403662125,1769452845361,-568.49885824,0.00015663,2]
[403662126,1769452845390,-150.0009467,0.00015987,2]
[403662127,1769452845420,-3240.0,0.00015987,2]
[403662128,1769452845447,-300.0,0.00016266,2]
[403662129,1769452845478,-283.01039012,0.00016266,2]
[403662130,1769452857706,-500.0,0.00015999,2]
[403662131,1769452857740,-722.69787248,0.00015999,2]
[403662132,1769452857770,-916.98960988,0.00016266,2]
[403662133,1769452857931,-3024.41878832,0.00016267,2]
[403662134,1769452864050,500.0,0.00011773,2]
[403662135,1769452864095,1000.0,0.00012321,2]
[403662141,1769452873312,187.08,0.00012479,2]
[403662142,1769452927155,500.0,0.00011773,2]
[403662143,1769452927212,542.55385224,0.00012321,2]
[403662144,1769452927772,500.0,0.00011773,2]
[403662145,1769452927807,1000.0,0.00012321,2]
[403662146,1769452960051,-302.46509455,0.00015478,2]
[403662147,1769452962154,-323.68495203,0.00015478,2]
[403662148,1769452965924,-155.03186655,0.00015478,2]
[403662149,1769452969806,-182.90599654,0.00015478,2]
[403662150,1769452983987,166.33151378,0.00011773,2]
[403662151,1769452984260,500.0,0.00011773,2]
[403662152,1769452984314,1500.0,0.00012868,2]
[403662153,1769452984372,1000.0,0.00012321,2]
[403662154,1769452984477,2000.0,0.00013416,2]
[403662155,1769452984528,2500.0,0.00013964,2]
[403662156,1769452984588,3000.0,0.00014512,2]
[403662157,1769452985173,-389.35788943,0.0001506,2]
[403662158,1769452987463,-157.99542452,0.0001506,2]
[403662159,1769452989001,-484.01642094,0.0001506,2]
[403662160,1769452991684,-588.36629673,0.0001506,2]
[403662161,1769452993232,-325.94039195,0.0001506,2]
[403662162,1769452997227,-261.64864638,0.0001506,2]
[403662163,1769452998810,-521.51135362,0.0001506,2]
[403662164,1769453000285,-166.66,0.0001506,2]
[403662165,1769453001478,-604.50357643,0.0001506,2]
[403662166,1769453001510,-150.0,0.00015428,2]
[403662167,1769453001539,-35.91209033,0.00015478,2]
[403662168,1769453001569,-4000.0,0.00015608,2]
[403662169,1769453001599,-194.486274,0.00016074,2]
[403662170,1769453001730,-30.20611848,0.00016155,2]
[403662171,1769453004011,-404.56406043,0.00016155,2]
[403662172,1769453007573,-765.22982109,0.00016155,2]
[403662173,1769453007603,-3969.55035782,0.00016156,2]
[403662174,1769453007639,-530.44964218,0.00016156,2]
[403662175,1769453016379,-1077.07029,0.00016074,2]
[403662176,1769453016411,-151.0,0.00016186,2]
[403662177,1769453016443,-300.0,0.00016266,2]
[403662178,1769453016517,-6943.86942,0.00016267,2]
[403662179,1769453016831,-3075.36780242,0.00016267,2]
[403662180,1769453016865,-1633.58255075,0.00016267,2]
[403662181,1769453016895,-160.26,0.00016267,2]
[403662182,1769453016970,-261.58929366,0.00016267,2]
[403662183,1769453016984,-10000.01,0.00016267,2]
[403662184,1769453021827,-77.10739228,0.00016267,2]
[403662185,1769453021859,-4687.87741544,0.00016267,2]
[403662186,1769453021910,-470.04038456,0.00016267,2]
[403662187,1769453021939,-300.0,0.00016299,2]
[403662188,1769453021971,-820.861,0.00016341,2]
[403662189,1769453022000,-167.384,0.00016341,2]
[403662190,1769453022028,-150.99,0.00016341,2]
[403662191,1769453022057,-300.0,0.00016341,2]
[403662192,1769453022086,-550.0,0.00016365,2]
[403662193,1769453022116,-500.0,0.00016366,2]
[403662194,1769453022145,-500.0,0.00016366,2]
[403662195,1769453022174,-310.52,0.00016366,2]
[403662196,1769453022204,-860.42923088,0.00016366,2]
[403662197,1769453022610,-139.56076912,0.00016366,2]
[403662198,1769453022619,-295.86658145,0.00016366,2]
[403662199,1769453022999,-166.66,0.00015984,2]
[403662200,1769453031250,151.0,0.00016206,2]
[403662201,1769453040540,500.0,0.00016366,2]
[403662202,1769453040788,188.89,0.00016366,2]
[403662203,1769453047695,151.0,0.00016207,2]
[403662204,1769453048799,300.0,0.00016365,2]
[403662205,1769453051280,500.0,0.00016366,2]
[403662206,1769453064519,151.0,0.00016207,2]
[403662207,1769453076258,7724.8,0.00015675,2]
[403662208,1769453076286,8924.39,0.00015675,2]
[403662209,1769453080903,151.0,0.00016207,2]
[403662210,1769453097024,151.0,0.00016206,2]
[403662211,1769453101517,300.0,0.00016365,2]
[403662212,1769453101547,300.0,0.00016365,2]
[403662213,1769453101575,173.62,0.00016365,2]
[403662214,1769453149935,-151.0,0.00016205,2]
[403662215,1769453156346,-31.32,0.00016266,2]
[403662216,1769453159111,-10000.01,0.00016266,2]
[403662217,1769453163209,170.20559092,0.00011773,2]
[403662219,1769453165166,-272.57020231,0.00016265,2]
[403662220,1769453165223,-9454.86959538,0.00016266,2]
[403662221,1769453165254,-10000.01,0.00016266,2]
[403662222,1769453166139,-10000.01,0.00016266,2]
[403662223,1769453166177,-10000.01,0.00016266,2]
[403662224,1769453166268,-10000.01,0.00016266,2]
[403662225,1769453166412,-10000.01,0.00016266,2]
[403662226,1769453166536,-10000.01,0.00016266,2]
[403662227,1769453166634,-10000.01,0.00016266,2]
[403662228,1769453166771,-10000.01,0.00016266,2]
[403662229,1769453199093,-159.98,0.00015918,2]
[403662230,1769453199149,-9680.05,0.00016266,2]
[403662231,1769453205137,-10000.01,0.00016266,2]
[403662232,1769453223343,1000.0,0.00012321,2]
[403662233,1769453223379,500.0,0.00011773,2]
[403662234,1769453223432,500.0,0.00011773,2]
[403662235,1769453223468,167.97854264,0.00011773,2]
[403662236,1769453223506,1000.0,0.00012321,2]
[403662237,1769453225993,300.0,0.0001295,2]
[403662238,1769453226096,448.16559277,0.00012047,2]
[403662240,1769453240244,-10000.01,0.00016256,2]
[403662241,1769453247999,-700.0,0.000158,5]
[403662242,1769453248030,-1400.0,0.000159,5]
[403662243,1769453248059,-1460.48590317,0.00016216,2]
[403662244,1769453248141,-2879.03819366,0.00016256,2]
[403662245,1769453344553,-886.81966314,0.00015888,2]
[403662246,1769453344581,-1200.0,0.00016165,2]
[403662247,1769453344610,-300.0,0.00016165,2]
[403662248,1769453344685,-5226.37067372,0.00016166,2]
[403662249,1769453345000,-3341.74272632,0.00016166,2]
[403662250,1769453345026,-3316.52454736,0.00016166,2]
[403662251,1769453345114,-1630.65320948,0.00016166,2]
[403662252,1769453345143,-151.0,0.00016171,2]
[403662253,1769453345211,-6436.70358104,0.00016256,2]
[403662254,1769453347510,-10000.01,0.00016256,2]
[403662255,1769453347636,-10000.01,0.00016256,2]
[403662256,1769453347751,-10000.01,0.00016256,2]
[403662257,1769453347914,-4690.79990498,0.00016256,2]
[403662258,1769453348219,-68.41019004,0.00016265,2]
[403662259,1769453348264,-481.58980996,0.00016265,2]
[403662260,1769453348322,-4847.15584812,0.00016266,2]
[403662261,1769453348414,-305.69830376,0.00016266,2]
[403662262,1769453350326,-132.72892176,0.00016266,2]
[403662263,1769453350355,-1248.69114802,0.00016266,2]
[403662264,1769453350383,-150.0,0.00016266,2]
[403662265,1769453350473,-6937.16986044,0.00016266,2]
[403662266,1769453350491,-10000.01,0.00016266,2]
[403662267,1769453353336,-150.0,0.00016266,2]
[403662268,1769453353374,-9700.01,0.00016266,2]
[403662269,1769453353493,-10000.01,0.00016266,2]
[403662270,1769453353624,-10000.01,0.00016266,2]
[403662271,1769453353760,-10000.01,0.00016266,2]
[403662272,1769453353867,-10000.01,0.00016266,2]
[403662273,1769453354027,-10000.01,0.00016266,2]
[403662306,1769453431854,-432.29101363,0.00016065,2]
[403662307,1769453431864,-750.50172114,0.00016165,2]
[403662308,1769453431876,-449.49827886,0.00016165,2]
[403662309,1769453431886,-285.0,0.00016165,2]
[403662310,1769453431896,-2909.5030916,0.00016166,2]
[403662311,1769453431916,-900.0,0.00016166,2]
[403662312,1769453431929,-424.72961453,0.00016166,2]
[403662313,1769453431941,-5098.98377331,0.00016166,2]
[403662314,1769453431951,-152.13538667,0.00016166,2]
[403662315,1769453431961,-461.8778,0.00016166,2]
[403662316,1769453431974,-151.0,0.00016171,2]
[403662317,1769453431984,-151.0,0.00016191,2]
[403662318,1769453431998,-151.0,0.00016192,2]
[403662319,1769453432009,-300.0,0.00016265,2]
[403662320,1769453432019,-3246.34406635,0.00016265,2]
[403662321,1769453432030,-3006.52437846,0.00016265,2]
[403662322,1769453432041,-687829.05077201,0.00016266,2]
[403662323,1769453432053,-34925.79537857,0.00016266,2]
[403662324,1769453432066,-47752.13941283,0.00016266,2]
[403662325,1769453432078,-631.40074476,0.00016266,2]
[403662326,1769453432090,-3727.50947885,0.00016266,2]
[403662327,1769453432114,-5351.0,0.00016266,2]
[403662328,1769453432142,-477.23599984,0.00016266,2]
[403662329,1769453432154,-447.5,0.00016266,2]
[403662337,1769453437456,-3545.62120439,0.00016266,2]
[403662338,1769453437468,-470.0885198,0.00016266,2]
[403662339,1769453437478,-785.1468432,0.00016266,2]
[403662340,1769453437510,-8189.12164493,0.00016266,2]
[403662341,1769453437617,-7145.191613,0.00016266,2]
[403662354,1769453439769,-372.86839505,0.00016266,2]
[403662355,1769453439785,-1405.08006027,0.00016266,2]
[403662356,1769453439805,-1141.67047668,0.00016266,2]
[403662357,1769453439824,-237.0846,0.00016266,2]
[403662358,1769453439840,-196.1486,0.00016266,2]
[403662359,1769453439856,-157.4586,0.00016267,2]
[403662360,1769453439872,-195.0,0.00016316,2]
[403662361,1769453439888,-1471.58297197,0.00016359,2]
[403662362,1769453439917,-2844.23565072,0.00016359,2]
[403662363,1769453439937,-3927.26817981,0.00016359,2]
[403662364,1769453439958,-591.46997237,0.00016359,2]
[403662365,1769453440016,-3050.08117253,0.00016359,2]
[403662366,1769453440033,-9333.21647935,0.00016359,2]
[403662367,1769453440050,-150.00117314,0.00016359,2]
[403662368,1769453440067,-151.0,0.00016365,2]
[403662369,1769453440084,-155.0,0.00016365,2]
[403662370,1769453440100,-1017.15,0.00016365,2]
[403662371,1769453440117,-500.0,0.00016365,2]
[403662372,1769453440133,-304.46999969,0.00016365,2]
[403662373,1769453440150,-500.0,0.00016365,2]
[403662374,1769453440166,-791.38760797,0.00016365,2]
[403662375,1769453440182,-791.38760797,0.00016365,2]
[403662376,1769453440197,-298.53222254,0.00016365,2]
[403662377,1769453440213,-500.0,0.00016365,2]
[403662378,1769453440229,-623.49380495,0.00016365,2]
[403662387,1769453440956,-151.00000017,0.00016365,2]
[403662388,1769453440975,-16.89380285,0.00016365,2]
[403662389,1769453440993,-500.0,0.00016365,2]
[403662390,1769453441007,-20.90615634,0.00016365,2]
[403662391,1769453441245,-770.48145163,0.00016365,2]
[403662392,1769453441255,-791.38760797,0.00016365,2]
[403662393,1769453441268,-500.0,0.00016365,2]
[403662394,1769453441279,-791.38760797,0.00016365,2]
[403662395,1769453441289,-791.38760797,0.00016365,2]
[403662396,1769453441546,-191.41552508,0.00016365,2]
[403662397,1769453441691,-791.38760797,0.00016365,2]
[403662398,1769453441721,-791.38760797,0.00016365,2]
[403662399,1769453441731,-791.38760797,0.00016365,2]
[403662400,1769453441740,-791.38760797,0.00016365,2]
[403662401,1769453441750,-791.38760797,0.00016365,2]
[403662402,1769453441759,-791.38760797,0.00016365,2]
[403662403,1769453441771,-390.61455155,0.00016365,2]
[403662404,1769453441804,-400.77305642,0.00016365,2]
[403662405,1769453441814,-29.65267848,0.00016365,2]
[403662435,1769453445329,-490.0,0.00016166,2]
[403662436,1769453445340,-259.19169647,0.00016166,2]
[403662437,1769453445351,-2493.1,0.00016166,2]
[403662438,1769453445363,-649.83334176,0.00016166,2]
[403662439,1769453445387,-19969.71130431,0.00016166,2]
[403662440,1769453445400,-24616.88214,0.00016166,2]
[403662441,1769453445411,-10299.9,0.00016166,2]
[403662442,1769453445423,-5397.53557225,0.00016166,2]
[403662443,1769453445437,-258109.36102621,0.00016166,2]
[403662444,1769453445447,-713.13,0.00016166,2]
[403662445,1769453445500,-403.92,0.00016166,2]
[403662446,1769453445512,-31188.58448811,0.00016166,2]
[403662447,1769453445524,-6019.73832867,0.00016166,2]
[403662448,1769453445607,-5068.46918364,0.00016166,2]
[403662449,1769453445663,-3065.82931984,0.00016166,2]
[403662450,1769453445675,-3495.83514778,0.00016166,2]
[403662451,1769453445716,-5758.36176899,0.00016166,2]
[403662452,1769453445728,-3016.57165071,0.00016166,2]
[403662453,1769453445739,-1896.49,0.00016166,2]
[403662454,1769453445774,-434.0568,0.00016166,2]
[403662460,1769453445830,-322.8916,0.00016166,2]
[403662462,1769453445841,-57262.75310606,0.00016166,2]
[403662463,1769453445852,-888.0,0.00016166,2]
[403662464,1769453445887,-1434.66494116,0.00016166,2]
[403662484,1769453645156,500.0,0.00011773,2]
[403662485,1769453645197,1131.17868896,0.00012321,2]
[403662486,1769453713674,-324.41,0.00015412,2]
[403662487,1769453713709,-213.56,0.00015513,2]
[403662488,1769453713739,-1968.042,0.00015843,2]
[403662489,1769453713769,-182.605,0.00015843,2]
[403662490,1769453713800,-150.00079852,0.00015843,2]
[403662491,1769453713832,-1200.0,0.00016065,2]
[403662492,1769453713862,-300.0,0.00016163,2]
[403662493,1769453713897,-300.0,0.00016163,2]
[403662494,1769453713928,-300.0,0.00016163,2]
[403662495,1769453714119,-122.77440296,0.00016164,2]
[403662496,1769453719667,-1077.22559704,0.00016164,2]
[403662497,1769453719698,-369.0,0.00016164,2]
[403662498,1769453719726,-500.0,0.00016164,2]
[403662499,1769453719754,-243.4906139,0.00016164,2]
[403662500,1769453719782,-500.0,0.00016164,2]
[403662501,1769453719816,-500.0,0.00016164,2]
[403662502,1769453719850,-500.0,0.00016164,2]
[403662503,1769453719877,-500.0,0.00016164,2]
[403662504,1769453719908,-380.63415321,0.00016164,2]
[403662505,1769453719939,-359.3092717,0.00016164,2]
[403662506,1769453720118,-140.6907283,0.00016164,2]
[403662507,1769453830284,-476.43791206,0.00015495,2]
[403662508,1769453846675,-2723.25208794,0.00015495,2]
[403662509,1769453846703,-166.6603372,0.00016034,2]
[403662510,1769453846733,-166.66033719,0.00016049,2]
[403662511,1769453846762,-166.66033719,0.00016064,2]
[403662512,1769453846876,-3553.54380096,0.00016066,2]
[403662513,1769453846920,-3913.02938252,0.00016066,2]
[403662514,1769453846963,-2173.95123496,0.00016066,2]
[403662515,1769453847226,-2666.25087704,0.00016066,2]
[403662516,1769453847253,-4667.50824592,0.00016066,2]
[403662517,1769453849913,-1336.06730092,0.00016066,2]
[403662518,1769453849942,-151.0,0.00016112,2]
[403662519,1769453849969,-578.20924308,0.00016135,2]
[403662520,1769453849996,-250.0,0.00016135,2]
[403662521,1769453850023,-195.0,0.00016136,2]
[403662522,1769453860331,151.0,0.00016125,2]
[403662523,1769453862082,-500.0,0.00016156,2]
[403662524,1769453862112,-500.0,0.00016156,2]
[403662525,1769453862148,-500.0,0.00016156,2]
[403662526,1769453862179,-250.0,0.00016156,2]
[403662527,1769453862209,-695.39793187,0.00016156,2]
[403662528,1769453862240,-500.0,0.00016156,2]
[403662529,1769453862270,-250.0,0.00016156,2]
[403662530,1769453862299,-500.0,0.00016156,2]
[403662531,1769453862328,-250.0,0.00016156,2]
[403662532,1769453862358,-500.0,0.00016156,2]
[403662533,1769453862389,-250.0,0.00016156,2]
[403662534,1769453862418,-109.21413626,0.00016156,2]
[403662535,1769453862538,-390.78586374,0.00016156,2]
[403662536,1769453862568,-250.0,0.00016156,2]
[403662537,1769453862598,-151.0,0.00016156,2]
[403662538,1769453862629,-500.0,0.00016156,2]
[403662539,1769453862659,-250.0,0.00016156,2]
[403662540,1769453862691,-151.0,0.00016156,2]
[403662541,1769453862722,-500.0,0.00016156,2]
[403662542,1769453862756,-250.0,0.00016156,2]
[403662543,1769453862786,-1571.43827252,0.00016156,2]
[403662544,1769453862906,-1971.56172748,0.00016156,2]
[403662545,1769453862941,-151.0,0.00016156,2]
[403662546,1769453862973,-500.0,0.00016156,2]
[403662547,1769453863004,-314.35815498,0.00016156,2]
[403662548,1769453863035,-151.0,0.00016156,2]
[403662549,1769453863065,-512.07463646,0.00016156,2]
[403662550,1769453863099,-151.0,0.00016156,2]
[403662551,1769453863131,-151.0,0.00016156,2]
[403662552,1769453863166,-250.0,0.00016156,2]
[403662553,1769453863200,-235.07514991,0.00016156,2]
[403662554,1769453863232,-250.0,0.00016156,2]
[403662555,1769453863273,-151.0,0.00016156,2]
[403662556,1769453863306,-174.61919141,0.00016156,2]
[403662557,1769453863428,-151.0,0.00016156,2]
[403662558,1769453863459,-151.0,0.00016156,2]
[403662559,1769453863491,-823.77908852,0.00016156,2]
[403662560,1769453863523,-151.0,0.00016156,2]
[403662561,1769453863554,-500.0,0.00016156,2]
[403662562,1769453863584,-151.0,0.00016156,2]
[403662563,1769453863617,-200.0,0.00016156,2]
[403662564,1769453863650,-500.0,0.00016156,2]
[403662565,1769453863680,-151.0,0.00016156,2]
[403662566,1769453863711,-500.0,0.00016156,2]
[403662567,1769453863740,-151.0,0.00016156,2]
[403662568,1769453863773,-500.0,0.00016156,2]
[403662569,1769453863801,-151.0,0.00016156,2]
[403662570,1769453863831,-500.0,0.00016156,2]
[403662571,1769453863859,-151.0,0.00016156,2]
[403662572,1769453863888,-36.45182296,0.00016156,2]
[403662573,1769453864027,-463.54817704,0.00016156,2]
[403662574,1769453864055,-151.0,0.00016156,2]
[403662575,1769453864084,-151.0,0.00016156,2]
[403662576,1769453864115,-523.67734565,0.00016156,2]
[403662577,1769453864144,-151.0,0.00016156,2]
[403662578,1769453864388,-151.0,0.00016156,2]
[403662579,1769453864418,-151.0,0.00016156,2]
[403662580,1769453864446,-151.0,0.00016156,2]
[403662581,1769453864486,-151.0,0.00016156,2]
[403662582,1769453864516,-151.0,0.00016156,2]
[403662583,1769453864546,-201.93286099,0.00016156,2]
[403662584,1769453864574,-322.6107,0.00016156,2]
[403662585,1769453864602,-691.39774486,0.00016156,2]
[403662586,1769453864630,-200.0,0.00016156,2]
[403662587,1769453864659,-500.0,0.00016163,2]
[403662588,1769453864692,-320.91362383,0.00016163,2]
[403662589,1769453864829,-1135.84909526,0.00016163,2]
[403662590,1769453864859,-570.0,0.00016163,2]
[403662591,1769453864891,-1456.76271909,0.00016163,2]
[403662592,1769453864925,-1456.76271909,0.00016163,2]
[403662593,1769453865145,-1456.76271909,0.00016163,2]
[403662594,1769453865178,-1456.76271909,0.00016163,2]
[403662595,1769453865213,-1456.76271909,0.00016163,2]
[403662596,1769453865378,-1456.76271909,0.00016163,2]
[403662597,1769453865410,-1456.76271909,0.00016163,2]
[403662598,1769453865443,-1456.76271909,0.00016163,2]
[403662599,1769453866768,-385.41033492,0.00016163,2]
[403662600,1769453866787,-1071.35238417,0.00016163,2]
[403662601,1769453866798,-188.08130129,0.00016163,2]
[403662602,1769453866842,-1268.6814178,0.00016163,2]
[403662603,1769453866874,-1456.76271909,0.00016163,2]
[403662604,1769453866909,-1456.76271909,0.00016163,2]
[403662605,1769453867138,-178.83356895,0.00016163,2]
[403662606,1769453867795,-9.24773234,0.00016163,2]
[403662607,1769453867813,-1259.43368546,0.00016163,2]
[403662608,1769453867850,-9.24773234,0.00016163,2]
[403662609,1769453867883,-1456.76271909,0.00016163,2]
[403662610,1769453867916,-1456.76271909,0.00016163,2]
[403662611,1769453867947,-1456.76271909,0.00016163,2]
[403662612,1769453868005,-1456.76271909,0.00016163,2]
[403662613,1769453868037,-1456.76271909,0.00016163,2]
[403662614,1769453868069,-1456.76271909,0.00016163,2]
[403662615,1769453868118,-1456.76271909,0.00016163,2]
[403662616,1769453868150,-1456.76271909,0.00016163,2]
[403662617,1769453868185,-1456.76271909,0.00016163,2]
[403662618,1769453868519,-1052.85691949,0.00016163,2]
[403662619,1769453868543,-201.93286099,0.00016135,2]
[403662620,1769453868553,-403.9057996,0.00016163,2]
[403662621,1769453868564,-850.9240585,0.00016163,2]
[403662622,1769453868579,-605.83866059,0.00016163,2]
[403662623,1769453868588,-653.59502487,0.00016163,2]
[403662624,1769453868607,-803.16769422,0.00016163,2]
[403662625,1769453868617,-653.59502487,0.00016163,2]
[403662626,1769453868631,-803.16769422,0.00016163,2]
[403662627,1769453868641,-500.0,0.00016163,2]
[403662628,1769453868650,-153.59502487,0.00016163,2]
[403662629,1769453868665,-1303.16769422,0.00016163,2]
[403662630,1769453868675,-153.59502487,0.00016163,2]
[403662631,1769453868693,-1259.43368546,0.00016163,2]
[403662632,1769453868741,-43.73400876,0.00016163,2]
[403662633,1769453868769,-500.0,0.00016163,2]
[403662634,1769453868802,-1456.76271909,0.00016163,2]
[403662635,1769453868832,-304.64258665,0.00016163,2]
[403662636,1769453868866,-1456.76271909,0.00016163,2]
[403662637,1769453868901,-1019.44321373,0.00016163,2]
[403662638,1769453869247,-437.31950536,0.00016163,2]
[403662639,1769453869280,-1456.76271909,0.00016163,2]
[403662640,1769453869312,-1456.76271909,0.00016163,2]
[403662641,1769453869344,-1456.76271909,0.00016163,2]
[403662642,1769453869395,-1456.76271909,0.00016163,2]
[403662643,1769453869428,-1456.76271909,0.00016163,2]
[403662644,1769453869459,-1456.76271909,0.00016163,2]
[403662645,1769453869745,-200.0,0.00016156,2]
[403662646,1769453869755,-622.1141801,0.00016163,2]
[403662647,1769453869770,-834.64853899,0.00016163,2]
[403662648,1769453869780,-424.78514647,0.00016163,2]
[403662649,1769453874542,-155.87085309,0.00016156,2]
[403662650,1769453874579,-1031.97757262,0.00016163,2]
[403662651,1769453874615,-1456.76271909,0.00016163,2]
[403662652,1769453874651,-1456.76271909,0.00016163,2]
[403662653,1769453874688,-340.49955313,0.00016163,2]
[403662654,1769453874781,-1116.26316596,0.00016163,2]
[403662655,1769453874817,-1456.76271909,0.00016163,2]
[403662656,1769453874853,-1456.76271909,0.00016163,2]
[403662657,1769453874889,-483.67007263,0.00016163,2]
[403662658,1769453874978,-632.59309333,0.00016163,2]
[403662659,1769453875001,-340.49955313,0.00016163,2]
[403662660,1769453875011,-1116.26316596,0.00016163,2]
[403662661,1769453878702,-151.0,0.00016117,2]
[403662662,1769453878737,-340.49955313,0.00016163,2]
[403662663,1769453878772,-1456.76271909,0.00016163,2]
[403662664,1769453878806,-1456.76271909,0.00016163,2]
[403662665,1769453878839,-1456.76271909,0.00016163,2]
[403662666,1769453878975,-276.4345792,0.00016163,2]
[403662667,1769453880776,-1180.32813989,0.00016163,2]
[403662668,1769453880810,-1456.76271909,0.00016163,2]
[403662669,1769453880843,-1456.76271909,0.00016163,2]
[403662670,1769453880876,-355.54012477,0.00016163,2]
[403662671,1769453880935,-1101.22259432,0.00016163,2]
[403662672,1769453880978,-1456.76271909,0.00016163,2]
[403662673,1769453881011,-1456.76271909,0.00016163,2]
[403662674,1769453881042,-1456.76271909,0.00016163,2]
[403662675,1769453881099,-1259.43368546,0.00016163,2]
[403662676,1769453981149,-200.0,0.0001552,2]
[403662677,1769453981179,-2500.0,0.00016066,2]
[403662678,1769453981211,-500.0,0.00016156,2]
[403662679,1769453981242,-306.72319279,0.00016156,2]
[403662680,1769453981272,-642.0,0.00016162,2]
[403662681,1769453981306,-300.0,0.00016162,2]
[403662682,1769453981337,-195.0,0.00016163,2]
[403662683,1769453981370,-197.32903363,0.00016163,2]
[403662684,1769453981523,-317.90554716,0.00016163,2]
[403662685,1769453992911,-151.0,0.00016109,2]
[403662686,1769453992952,-1138.85717193,0.00016163,2]
[403662687,1769453992986,-1456.76271909,0.00016163,2]
[403662688,1769453993021,-1456.76271909,0.00016163,2]
[403662689,1769453993056,-146.52870015,0.00016163,2]
[403662690,1769453993153,-1300.18737948,0.00016163,2]
[403662691,1769454120543,-500.0,0.0001543,2]